[Event "*** Titled Tuesday Blitz"]
[Site "Chess.com"]
[Date "2018.06.05"]
[Round "10"]
[White "PowerThinking2650"]
[Black "kungmongmanh"]
[Result "0-1"]
[WhiteElo "2307"]
[BlackElo "2368"]
[TimeControl "180+2"]
[EndTime "15:27:32 PDT"]
[Termination "kungmongmanh won by resignation"]

1. e4 {[%clk 0:03:01.9]} 1... e6 {[%clk 0:03:00.5]} 2. d4 {[%clk 0:03:02]} 2...
d5 {[%clk 0:03:01.7]} 3. Nd2 {[%clk 0:03:03.5]} 3... Nf6 {[%clk 0:03:02.5]} 4.
e5 {[%clk 0:03:04.8]} 4... Nfd7 {[%clk 0:03:03.6]} 5. Bd3 {[%clk 0:03:06.7]}
5... c5 {[%clk 0:03:05.1]} 6. c3 {[%clk 0:03:08.4]} 6... Nc6 {[%clk 0:03:06.6]}
7. Ne2 {[%clk 0:03:10]} 7... Qb6 {[%clk 0:03:07.8]} 8. Nf3 {[%clk 0:03:08.8]}
8... f6 {[%clk 0:03:04.8]} 9. exf6 {[%clk 0:03:07.9]} 9... Nxf6 {[%clk
0:03:06.7]} 10. O-O {[%clk 0:03:08.7]} 10... cxd4 {[%clk 0:03:04.1]} 11. cxd4
{[%clk 0:03:09.1]} 11... Bd6 {[%clk 0:03:05.6]} 12. a3 {[%clk 0:03:06.6]} 12...
O-O {[%clk 0:03:05.6]} 13. b4 {[%clk 0:03:07.5]} 13... e5 {[%clk 0:03:01.5]} 14.
dxe5 {[%clk 0:02:26.4]} 14... Nxe5 {[%clk 0:03:03.4]} 15. Nxe5 {[%clk 0:02:24]}
15... Bxe5 {[%clk 0:03:05.3]} 16. Rb1 {[%clk 0:02:23.7]} 16... Qc7 {[%clk
0:03:03.7]} 17. Ng3 {[%clk 0:02:16.6]} 17... Bg4 {[%clk 0:02:56.1]} 18. Qc2
{[%clk 0:02:11.3]} 18... Qd6 {[%clk 0:02:48.9]} 19. Qc5 {[%clk 0:02:11.9]} 19...
b6 {[%clk 0:02:23]} 20. Qxd6 {[%clk 0:02:11.8]} 20... Bxd6 {[%clk 0:02:24.9]}
21. Bb2 {[%clk 0:02:11.4]} 21... Rac8 {[%clk 0:02:16.4]} 22. Nf5 {[%clk
0:02:06.2]} 22... Rfd8 {[%clk 0:01:54.4]} 23. h3 {[%clk 0:01:50.5]} 23... Bh5
{[%clk 0:01:49.3]} 24. Rbc1 {[%clk 0:01:30.7]} 24... Bf8 {[%clk 0:01:40.1]} 25.
Ba6 {[%clk 0:00:52.2]} 25... Rxc1 {[%clk 0:01:39.2]} 26. Rxc1 {[%clk 0:00:53]}
26... Bg6 {[%clk 0:01:38.4]} 27. Nd4 {[%clk 0:00:52]} 27... Bd6 {[%clk
0:01:30.7]} 28. Nf3 {[%clk 0:00:21.1]} 28... Ne4 {[%clk 0:01:25]} 29. Rc6 {[%clk
0:00:19.3]} 29... Be8 {[%clk 0:01:24]} 30. Rc1 {[%clk 0:00:18.4]} 30... Bf4
{[%clk 0:01:12.2]} 31. Rd1 {[%clk 0:00:19.3]} 31... Bf7 {[%clk 0:01:08.7]} 32.
Bb7 {[%clk 0:00:18.7]} 32... Rd7 {[%clk 0:01:03]} 33. Bc6 {[%clk 0:00:19.3]}
33... Rd6 {[%clk 0:01:00.8]} 34. b5 {[%clk 0:00:19.2]} 34... Nf6 {[%clk
0:00:54.7]} 35. g3 {[%clk 0:00:19.3]} 35... Bh6 {[%clk 0:00:52.2]} 36. Be5
{[%clk 0:00:19.3]} 36... Rd8 {[%clk 0:00:53]} 37. Nd4 {[%clk 0:00:17.6]} 37...
Ne4 {[%clk 0:00:44.7]} 38. Nf5 {[%clk 0:00:15.7]} 38... Be6 {[%clk 0:00:35.8]}
39. Nxh6+ {[%clk 0:00:13.7]} 39... gxh6 {[%clk 0:00:36.7]} 40. Kg2 {[%clk
0:00:14.7]} 40... Kf7 {[%clk 0:00:36.8]} 41. f3 {[%clk 0:00:15]} 41... Nc5
{[%clk 0:00:35.5]} 42. g4 {[%clk 0:00:15.4]} 42... Nb3 {[%clk 0:00:30.2]} 43. f4
{[%clk 0:00:14.9]} 43... d4 {[%clk 0:00:29.4]} 44. Kg3 {[%clk 0:00:13.7]} 44...
Bd5 {[%clk 0:00:23.2]} 45. Rd3 {[%clk 0:00:11.4]} 45... Bc4 {[%clk 0:00:23.4]}
46. Rd1 {[%clk 0:00:11.4]} 46... d3 {[%clk 0:00:23.1]} 47. a4 {[%clk 0:00:11.1]}
47... Nc5 {[%clk 0:00:18.8]} 48. Bf3 {[%clk 0:00:09.2]} 48... Bb3 {[%clk
0:00:18.1]} 49. Rd2 {[%clk 0:00:09.2]} 49... Bxa4 {[%clk 0:00:18.7]} 50. f5
{[%clk 0:00:08.2]} 50... Bxb5 {[%clk 0:00:17.3]} 51. g5 {[%clk 0:00:06.1]} 51...
hxg5 {[%clk 0:00:18.4]} 52. Bh5+ {[%clk 0:00:07.3]} 52... Kf8 {[%clk 0:00:19.7]}
53. f6 {[%clk 0:00:07.6]} 53... Ne4+ {[%clk 0:00:17.9]} 54. Kg4 {[%clk
0:00:08.5]} 54... Nxd2 {[%clk 0:00:19.7]} 55. Kxg5 {[%clk 0:00:09.3]} 55... Be8
{[%clk 0:00:19.2]} 56. Bd1 {[%clk 0:00:08.4]} 56... Ne4+ {[%clk 0:00:18.4]} 57.
Kf4 {[%clk 0:00:09.2]} 57... Nc5 {[%clk 0:00:18.7]} 58. Bc3 {[%clk 0:00:09.2]}
58... Bf7 {[%clk 0:00:18.8]} 59. Bd2 {[%clk 0:00:09.3]} 59... a5 {[%clk
0:00:17.8]} 60. Ke5 {[%clk 0:00:08.6]} 60... Rd5+ {[%clk 0:00:18.2]} 61. Kf4
{[%clk 0:00:09.8]} 61... a4 {[%clk 0:00:19.2]} 62. Bf3 {[%clk 0:00:10.3]} 62...
Rd6 {[%clk 0:00:19.2]} 63. Ke5 {[%clk 0:00:10.9]} 63... Re6+ {[%clk 0:00:20]}
64. Kf5 {[%clk 0:00:11.9]} 64... Bg6+ {[%clk 0:00:21]} 65. Kg5 {[%clk
0:00:12.6]} 65... Bf7 {[%clk 0:00:20.9]} 66. h4 {[%clk 0:00:13.3]} 66... a3
{[%clk 0:00:21.8]} 67. Bc3 {[%clk 0:00:14.6]} 67... Rd6 {[%clk 0:00:22.6]} 68.
h5 {[%clk 0:00:14.3]} 68... d2 {[%clk 0:00:23]} 69. Bd1 {[%clk 0:00:15.4]} 69...
Ne4+ {[%clk 0:00:22.8]} 70. Kh6 {[%clk 0:00:16]} 70... Nxc3 {[%clk 0:00:23.3]}
71. Kxh7 {[%clk 0:00:17.4]} 71... a2 {[%clk 0:00:23.6]} 72. h6 {[%clk 0:00:19]}
72... Nxd1 {[%clk 0:00:22.8]} 73. Kh8 {[%clk 0:00:20.2]} 73... Rxf6 {[%clk
0:00:22.5]} 74. h7 {[%clk 0:00:21.3]} 74... Ke7 {[%clk 0:00:23.7]} 75. Kg7
{[%clk 0:00:22.2]} 75... Rg6+ {[%clk 0:00:24.4]} 76. Kh8 {[%clk 0:00:23.5]}
76... Rh6 {[%clk 0:00:25.6]} 77. Kg7 {[%clk 0:00:24.3]} 77... Rxh7+ {[%clk
0:00:27]} 78. Kxh7 {[%clk 0:00:25.7]} 78... Ne3 {[%clk 0:00:28.3]} 0-1

[Event "*** Titled Tuesday Blitz"]
[Site "Chess.com"]
[Date "2018.06.05"]
[Round "10"]
[White "Fandorine"]
[Black "murmah2003"]
[Result "1/2-1/2"]
[WhiteElo "2731"]
[BlackElo "2503"]
[TimeControl "180+2"]
[EndTime "15:28:19 PDT"]
[Termination "Game drawn by agreement"]

1. e4 {[%clk 0:03:01.4]} 1... g6 {[%clk 0:02:57]} 2. d4 {[%clk 0:02:57]} 2...
Bg7 {[%clk 0:02:56.9]} 3. Nc3 {[%clk 0:02:58.2]} 3... c6 {[%clk 0:02:57.4]} 4.
Nf3 {[%clk 0:02:52.4]} 4... d6 {[%clk 0:02:56.5]} 5. Be3 {[%clk 0:02:49.6]} 5...
b5 {[%clk 0:02:53.8]} 6. Ne2 {[%clk 0:02:47.5]} 6... Nf6 {[%clk 0:02:30.5]} 7.
Ng3 {[%clk 0:02:48.2]} 7... O-O {[%clk 0:02:30.4]} 8. h3 {[%clk 0:02:48.6]} 8...
Bb7 {[%clk 0:02:25.7]} 9. Bd3 {[%clk 0:02:44.5]} 9... a6 {[%clk 0:02:21.7]} 10.
O-O {[%clk 0:02:44.4]} 10... Nbd7 {[%clk 0:02:22.8]} 11. c3 {[%clk 0:02:44.2]}
11... e5 {[%clk 0:02:17.8]} 12. Re1 {[%clk 0:02:44.4]} 12... Qc7 {[%clk
0:02:15.8]} 13. Qd2 {[%clk 0:02:40.2]} 13... exd4 {[%clk 0:02:13.9]} 14. cxd4
{[%clk 0:02:40.3]} 14... c5 {[%clk 0:02:15.2]} 15. d5 {[%clk 0:02:35]} 15...
Rfe8 {[%clk 0:02:07.7]} 16. Bh6 {[%clk 0:02:31.9]} 16... Bxh6 {[%clk 0:01:26.8]}
17. Qxh6 {[%clk 0:02:30.1]} 17... Qd8 {[%clk 0:01:27.6]} 18. Rad1 {[%clk
0:02:26.6]} 18... Qe7 {[%clk 0:01:20.7]} 19. Nh2 {[%clk 0:02:20.8]} 19... Qf8
{[%clk 0:01:18.6]} 20. Qc1 {[%clk 0:02:21]} 20... c4 {[%clk 0:01:17.1]} 21. Bb1
{[%clk 0:02:21]} 21... Rac8 {[%clk 0:01:17.1]} 22. f4 {[%clk 0:02:18.8]} 22...
Nc5 {[%clk 0:01:07.8]} 23. Nf3 {[%clk 0:02:20.1]} 23... Rc7 {[%clk 0:01:00.6]}
24. Qc3 {[%clk 0:02:15]} 24... Qg7 {[%clk 0:00:52]} 25. Re2 {[%clk 0:01:46.2]}
25... Rce7 {[%clk 0:00:51.1]} 26. Rde1 {[%clk 0:01:45.9]} 26... Nfd7 {[%clk
0:00:40.6]} 27. Qd2 {[%clk 0:01:06.6]} 27... Nb6 {[%clk 0:00:35.1]} 28. Kh2
{[%clk 0:00:43.6]} 28... Rd8 {[%clk 0:00:27.5]} 29. Nd4 {[%clk 0:00:31.1]} 29...
Qf8 {[%clk 0:00:10.5]} 30. Re3 {[%clk 0:00:29.2]} 30... Rde8 {[%clk 0:00:10.2]}
31. Ngf5 {[%clk 0:00:20.5]} 31... Rd7 {[%clk 0:00:10.4]} 32. Rg3 {[%clk
0:00:17.7]} 32... Kh8 {[%clk 0:00:11.4]} 33. Qc3 {[%clk 0:00:17.6]} 33... Nba4
{[%clk 0:00:08.9]} 34. Qc1 {[%clk 0:00:17.1]} 34... gxf5 {[%clk 0:00:07.7]} 35.
Nxf5 {[%clk 0:00:19]} 35... f6 {[%clk 0:00:08.8]} 36. b3 {[%clk 0:00:20]} 36...
Nb6 {[%clk 0:00:08.2]} 37. Qc3 {[%clk 0:00:16.5]} 37... Qf7 {[%clk 0:00:05.9]}
38. Qd4 {[%clk 0:00:12.8]} 38... Qf8 {[%clk 0:00:04.2]} 39. b4 {[%clk
0:00:11.6]} 39... Nca4 {[%clk 0:00:05.3]} 40. Rf1 {[%clk 0:00:11.2]} 40... Bc8
{[%clk 0:00:06]} 41. Bc2 {[%clk 0:00:11.4]} 41... Rf7 {[%clk 0:00:06.9]} 42. Ne3
{[%clk 0:00:07.2]} 42... Rg7 {[%clk 0:00:06.9]} 43. Rff3 {[%clk 0:00:06.2]}
43... Qf7 {[%clk 0:00:05.8]} 44. Rxg7 {[%clk 0:00:07.1]} 44... Qxg7 {[%clk
0:00:07.7]} 45. Rg3 {[%clk 0:00:08.3]} 45... Qh6 {[%clk 0:00:07.3]} 46. f5
{[%clk 0:00:04.3]} 46... Rg8 {[%clk 0:00:07.5]} 47. Ng4 {[%clk 0:00:04.4]} 47...
Qg7 {[%clk 0:00:03]} 48. Qxf6 {[%clk 0:00:02.2]} 48... Qxf6 {[%clk 0:00:04]} 49.
Nxf6 {[%clk 0:00:04.1]} 49... Rxg3 {[%clk 0:00:05.8]} 50. Kxg3 {[%clk 0:00:06]}
50... Nc3 {[%clk 0:00:07.5]} 51. Ne8 {[%clk 0:00:05.9]} 51... Ne2+ {[%clk
0:00:05.2]} 52. Kf2 {[%clk 0:00:06.4]} 52... Nd4 {[%clk 0:00:07.1]} 53. Bd1
{[%clk 0:00:07.7]} 53... c3 {[%clk 0:00:08.5]} 54. Nxd6 {[%clk 0:00:09.2]} 54...
c2 {[%clk 0:00:09.2]} 55. Bxc2 {[%clk 0:00:10.7]} 55... Nxc2 {[%clk 0:00:11.1]}
56. g4 {[%clk 0:00:11.8]} 56... Nxb4 {[%clk 0:00:09.1]} 57. Kf3 {[%clk
0:00:12.3]} 57... Bd7 {[%clk 0:00:09.9]} 58. Kf4 {[%clk 0:00:13.5]} 58... N4xd5+
{[%clk 0:00:10.6]} 59. exd5 {[%clk 0:00:14.6]} 59... Nxd5+ {[%clk 0:00:12.5]}
60. Ke5 {[%clk 0:00:16.5]} 60... Nc3 {[%clk 0:00:12.8]} 61. a3 {[%clk
0:00:17.6]} 61... Kg7 {[%clk 0:00:13.5]} 62. g5 {[%clk 0:00:17.3]} 62... a5
{[%clk 0:00:09.4]} 63. h4 {[%clk 0:00:18.6]} 63... b4 {[%clk 0:00:04.2]} 64.
axb4 {[%clk 0:00:19.5]} 64... axb4 {[%clk 0:00:04.9]} 65. h5 {[%clk 0:00:20.9]}
65... Bxf5 {[%clk 0:00:04]} 66. Nxf5+ {[%clk 0:00:20.4]} 66... Kg8 {[%clk
0:00:04.9]} 67. Kf6 {[%clk 0:00:21.2]} 67... Ne4+ {[%clk 0:00:05.4]} 68. Ke5
{[%clk 0:00:21]} 68... Nxg5 {[%clk 0:00:07.2]} 69. Kd4 {[%clk 0:00:21.7]} 69...
Kf7 {[%clk 0:00:07.2]} 70. Kc4 {[%clk 0:00:23]} 70... Kf6 {[%clk 0:00:08.1]} 71.
Ng3 {[%clk 0:00:23.2]} 71... Ke5 {[%clk 0:00:09]} 72. Kxb4 {[%clk 0:00:24.1]}
72... Kf4 {[%clk 0:00:10.3]} 73. Ne2+ {[%clk 0:00:24.1]} 73... Kg4 {[%clk
0:00:11.8]} 74. Nd4 {[%clk 0:00:24.8]} 74... Kxh5 {[%clk 0:00:12.3]} 75. Kc4
{[%clk 0:00:25.9]} 75... Kg4 {[%clk 0:00:11.4]} 76. Kd3 {[%clk 0:00:27.3]} 76...
h5 {[%clk 0:00:09.6]} 77. Ke2 {[%clk 0:00:28.6]} 77... h4 {[%clk 0:00:08.6]} 78.
Kf2 {[%clk 0:00:30]} 78... h3 {[%clk 0:00:09.6]} 79. Kg1 {[%clk 0:00:28.7]}
79... Kg3 {[%clk 0:00:08.9]} 80. Ne2+ {[%clk 0:00:30]} 80... Kg4 {[%clk
0:00:10.4]} 81. Kh1 {[%clk 0:00:28.9]} 81... Ne4 {[%clk 0:00:11.4]} 82. Ng1
{[%clk 0:00:29.1]} 82... Ng3+ {[%clk 0:00:07.6]} 83. Kh2 {[%clk 0:00:30.2]}
83... Nf1+ {[%clk 0:00:09.5]} 84. Kh1 {[%clk 0:00:31.6]} 84... h2 {[%clk
0:00:11]} 85. Kg2 {[%clk 0:00:32.8]} 85... Kh4 {[%clk 0:00:06.6]} 1/2-1/2

[Event "*** Titled Tuesday Blitz"]
[Site "Chess.com"]
[Date "2018.06.05"]
[Round "10"]
[White "BasilSmash"]
[Black "VNeimer"]
[Result "1/2-1/2"]
[WhiteElo "2426"]
[BlackElo "2489"]
[TimeControl "180+2"]
[EndTime "15:28:21 PDT"]
[Termination "Game drawn - insufficient material"]

1. d4 {[%clk 0:03:01.2]} 1... Nf6 {[%clk 0:03:00.7]} 2. Nf3 {[%clk 0:03:01.1]}
2... b6 {[%clk 0:03:00.9]} 3. Bf4 {[%clk 0:03:00]} 3... Bb7 {[%clk 0:03:01.5]}
4. e3 {[%clk 0:03:00.6]} 4... g6 {[%clk 0:03:00.7]} 5. h3 {[%clk 0:02:57.8]}
5... Bg7 {[%clk 0:03:01.5]} 6. Be2 {[%clk 0:02:57.2]} 6... O-O {[%clk
0:03:02.4]} 7. O-O {[%clk 0:02:57.6]} 7... c5 {[%clk 0:03:02.7]} 8. c3 {[%clk
0:02:58.4]} 8... d6 {[%clk 0:02:59.9]} 9. a4 {[%clk 0:02:58.4]} 9... a6 {[%clk
0:02:58.9]} 10. Nbd2 {[%clk 0:02:57.3]} 10... Nbd7 {[%clk 0:02:59.9]} 11. Bh2
{[%clk 0:02:56.6]} 11... Rc8 {[%clk 0:02:58.1]} 12. Bd3 {[%clk 0:02:56.4]} 12...
e5 {[%clk 0:02:40.6]} 13. dxe5 {[%clk 0:02:49.5]} 13... Nxe5 {[%clk 0:02:36]}
14. Nxe5 {[%clk 0:02:45.8]} 14... dxe5 {[%clk 0:02:37.9]} 15. Qe2 {[%clk
0:02:46.4]} 15... Qc7 {[%clk 0:02:02.1]} 16. Bxa6 {[%clk 0:02:43.1]} 16... Rfd8
{[%clk 0:01:44.6]} 17. Bxb7 {[%clk 0:02:39.9]} 17... Qxb7 {[%clk 0:01:46.5]} 18.
Bxe5 {[%clk 0:02:38.2]} 18... Rxd2 {[%clk 0:01:36]} 19. Qxd2 {[%clk 0:02:26.8]}
19... Ne4 {[%clk 0:01:37.5]} 20. Qd3 {[%clk 0:02:14.8]} 20... Bxe5 {[%clk
0:01:38.6]} 21. Rfd1 {[%clk 0:02:14.4]} 21... c4 {[%clk 0:01:33.8]} 22. Qd5
{[%clk 0:02:12.6]} 22... Qxd5 {[%clk 0:01:26]} 23. Rxd5 {[%clk 0:02:14.5]} 23...
Rc5 {[%clk 0:01:24.9]} 24. Rxc5 {[%clk 0:01:34.1]} 24... Nxc5 {[%clk 0:01:26.8]}
25. a5 {[%clk 0:01:32.3]} 25... bxa5 {[%clk 0:01:28.7]} 26. Rxa5 {[%clk
0:01:31.8]} 26... Bd6 {[%clk 0:01:30.1]} 27. Ra8+ {[%clk 0:01:28.4]} 27... Kg7
{[%clk 0:01:29.8]} 28. Rd8 {[%clk 0:01:28.6]} 28... Be7 {[%clk 0:01:22.4]} 29.
Rd4 {[%clk 0:01:28.4]} 29... Na4 {[%clk 0:01:10.4]} 30. Rxc4 {[%clk 0:01:28.3]}
30... Nxb2 {[%clk 0:01:11.3]} 31. Rc7 {[%clk 0:01:25]} 31... Bd6 {[%clk
0:01:04.1]} 32. Rc6 {[%clk 0:01:23.9]} 32... Ba3 {[%clk 0:01:00.2]} 33. g4
{[%clk 0:01:18]} 33... h6 {[%clk 0:00:58.4]} 34. Kg2 {[%clk 0:01:18.7]} 34...
Kf8 {[%clk 0:00:59.8]} 35. f4 {[%clk 0:01:19.1]} 35... Ke7 {[%clk 0:01:01]} 36.
Kf3 {[%clk 0:01:19.1]} 36... Nd3 {[%clk 0:00:58.6]} 37. c4 {[%clk 0:01:11.7]}
37... Bd6 {[%clk 0:00:56.4]} 38. Ra6 {[%clk 0:01:09.6]} 38... f5 {[%clk
0:00:53.9]} 39. Ra7+ {[%clk 0:01:04.5]} 39... Ke6 {[%clk 0:00:44.6]} 40. Rh7
{[%clk 0:01:03.9]} 40... Bf8 {[%clk 0:00:44.6]} 41. Ra7 {[%clk 0:00:48.1]} 41...
Nc5 {[%clk 0:00:43.8]} 42. Rc7 {[%clk 0:00:46.1]} 42... Ne4 {[%clk 0:00:44.4]}
43. Rc8 {[%clk 0:00:45.7]} 43... Kf7 {[%clk 0:00:41.2]} 44. Kg2 {[%clk
0:00:41.5]} 44... h5 {[%clk 0:00:41]} 45. gxh5 {[%clk 0:00:39.5]} 45... gxh5
{[%clk 0:00:42.9]} 46. Kf3 {[%clk 0:00:39.2]} 46... h4 {[%clk 0:00:43.8]} 47.
Ke2 {[%clk 0:00:39.9]} 47... Be7 {[%clk 0:00:42.9]} 48. Rc6 {[%clk 0:00:38.5]}
48... Ke8 {[%clk 0:00:43.9]} 49. Rh6 {[%clk 0:00:37.6]} 49... Kd7 {[%clk
0:00:44.4]} 50. Kf3 {[%clk 0:00:38.1]} 50... Nd2+ {[%clk 0:00:45]} 51. Ke2
{[%clk 0:00:35.7]} 51... Nxc4 {[%clk 0:00:46.9]} 52. Rh5 {[%clk 0:00:36.2]}
52... Ke6 {[%clk 0:00:47]} 53. Rh6+ {[%clk 0:00:37.5]} 53... Kf7 {[%clk
0:00:48.2]} 54. Ra6 {[%clk 0:00:36.8]} 54... Nd6 {[%clk 0:00:48.2]} 55. Kf3
{[%clk 0:00:36.9]} 55... Ne4 {[%clk 0:00:48.5]} 56. Rc6 {[%clk 0:00:37.6]} 56...
Bf6 {[%clk 0:00:48.2]} 57. Ra6 {[%clk 0:00:37.5]} 57... Nd2+ {[%clk 0:00:47.7]}
58. Ke2 {[%clk 0:00:37.6]} 58... Ne4 {[%clk 0:00:47.8]} 59. Kf3 {[%clk
0:00:38.7]} 59... Be7 {[%clk 0:00:46.4]} 60. Rc6 {[%clk 0:00:38.5]} 60... Nd2+
{[%clk 0:00:46.4]} 61. Ke2 {[%clk 0:00:38.8]} 61... Nb3 {[%clk 0:00:47.1]} 62.
Rb6 {[%clk 0:00:32.7]} 62... Nc5 {[%clk 0:00:47.5]} 63. Rc6 {[%clk 0:00:33.3]}
63... Ne4 {[%clk 0:00:47.3]} 64. Kf3 {[%clk 0:00:33.4]} 64... Bd6 {[%clk
0:00:48.3]} 65. Ra6 {[%clk 0:00:33]} 65... Ke6 {[%clk 0:00:49.4]} 66. Ra8 {[%clk
0:00:33.3]} 66... Be7 {[%clk 0:00:49.5]} 67. Ra6+ {[%clk 0:00:32.9]} 67... Kd5
{[%clk 0:00:50.3]} 68. Ra5+ {[%clk 0:00:33.8]} 68... Bc5 {[%clk 0:00:50.4]} 69.
Ra8 {[%clk 0:00:34.3]} 69... Nd2+ {[%clk 0:00:51.3]} 70. Ke2 {[%clk 0:00:34.5]}
70... Nc4 {[%clk 0:00:52.7]} 71. Rd8+ {[%clk 0:00:31.3]} 71... Ke6 {[%clk
0:00:49.5]} 72. Rc8 {[%clk 0:00:28.5]} 72... Kd5 {[%clk 0:00:48.8]} 73. Rd8+
{[%clk 0:00:27.8]} 73... Bd6 {[%clk 0:00:48.2]} 74. Kf3 {[%clk 0:00:26.3]} 74...
Nd2+ {[%clk 0:00:47.5]} 75. Ke2 {[%clk 0:00:27]} 75... Ne4 {[%clk 0:00:48.5]}
76. Rh8 {[%clk 0:00:25.9]} 76... Be7 {[%clk 0:00:47.6]} 77. Ra8 {[%clk
0:00:25.2]} 77... Bc5 {[%clk 0:00:38.5]} 78. Rd8+ {[%clk 0:00:23.6]} 78... Ke6
{[%clk 0:00:38.6]} 79. Re8+ {[%clk 0:00:24]} 79... Be7 {[%clk 0:00:37.9]} 80.
Kf3 {[%clk 0:00:23.7]} 80... Nd6 {[%clk 0:00:37.4]} 81. Ra8 {[%clk 0:00:23]}
81... Kd5 {[%clk 0:00:37.4]} 82. Ra5+ {[%clk 0:00:23.5]} 82... Ke6 {[%clk
0:00:37.7]} 83. Ra6 {[%clk 0:00:24.5]} 83... Kf7 {[%clk 0:00:37.7]} 84. Ra7
{[%clk 0:00:24.6]} 84... Kf6 {[%clk 0:00:38.4]} 85. Ra6 {[%clk 0:00:25.4]} 85...
Ke6 {[%clk 0:00:39.2]} 86. Ra5 {[%clk 0:00:26.3]} 86... Ne4 {[%clk 0:00:39.5]}
87. Re5+ {[%clk 0:00:26.4]} 87... Kf6 {[%clk 0:00:40]} 88. Rxe4 {[%clk
0:00:24.5]} 88... fxe4+ {[%clk 0:00:40.6]} 89. Kxe4 {[%clk 0:00:26.4]} 89... Ba3
{[%clk 0:00:40.2]} 90. Kf3 {[%clk 0:00:26.7]} 90... Bc1 {[%clk 0:00:36.7]} 91.
Kg4 {[%clk 0:00:24.8]} 91... Bxe3 {[%clk 0:00:36.9]} 92. Kxh4 {[%clk 0:00:25.2]}
92... Bxf4 {[%clk 0:00:37.5]} 93. Kg4 {[%clk 0:00:26.5]} 93... Bc1 {[%clk
0:00:37.4]} 94. h4 {[%clk 0:00:27.4]} 94... Kg6 {[%clk 0:00:38.5]} 95. h5+
{[%clk 0:00:28.4]} 95... Kh6 {[%clk 0:00:38.5]} 96. Kf5 {[%clk 0:00:28.9]} 96...
Kxh5 {[%clk 0:00:39.2]} 1/2-1/2